bitfinex-derivatives/quotes_SOLF0:USTF0_20250110
["timestamp","ask_amount","ask_price","bid_price","bid_amount"]
[1736492551747,2.6191,190.92,190.91,1.6238]
[1736492551950,10.52549172,190.93,190.9,1.02]
[1736492552749,2.6197,190.88,190.86,1.5815]
[1736492552947,2.6197,190.88,190.85,1.6063]
[1736492553551,2.6198,190.87,190.85,1.6063]
[1736492562855,2.6198,190.87,190.81,1.5815]
[1736492563053,10.52549172,190.89,190.78,1.6016]
[1736492563054,10.52549172,190.83,190.78,1.6016]
[1736492563254,15.06549172,190.83,190.78,1.6016]
[1736492563458,2.6208,190.8,190.78,1.6016]
[1736492565160,15.06549172,190.83,190.78,1.6016]
[1736492565355,6.75415746,190.81,190.78,1.6016]
[1736492566061,6.75415746,190.81,190.79,2.6209]
[1736492567157,6.75415746,190.81,190.78,1.6016]
[1736492567361,15.09390704,190.83,190.78,4.2226]
[1736492568259,15.09390704,190.83,190.78,1.6016]
[1736492568461,4.54,190.83,190.8,2.6207]
[1736492571862,4.54,190.83,190.78,1.6016]
[1736492572063,4.54,190.83,190.79,2.6208]
[1736492573868,15.09390704,190.83,190.78,1.6016]
[1736492574069,10.55390704,190.8,190.77,1.4834]
[1736492574270,10.55390704,190.8,190.72,1.4855]
[1736492574564,10.55390704,190.8,190.73,2.6217]
[1736492574565,2.6212,190.77,190.73,2.6217]
[1736492574768,2.6212,190.77,190.72,1.4855]
[1736492574965,2.6213,190.76,190.72,4.1073]
[1736492575171,2.6213,190.76,190.72,1.4855]
[1736492580269,10.55390704,190.77,190.72,1.4855]
[1736492580470,10.55390704,190.8,190.72,1.4855]
[1736492581068,4.52,190.82,190.72,1.4855]
[1736492581269,10.55390704,190.83,190.72,1.4855]
[1736492581574,13.17420704,190.83,190.75,2.6214]
[1736492581774,13.17420704,190.83,190.76,1.5982]
[1736492582867,13.17420704,190.83,190.78,2.6209]
[1736492584072,13.17420704,190.83,190.79,2.6208]
[1736492584271,10.55390704,190.86,190.76,1.5982]
[1736492584568,10.55390704,190.89,190.82,2.6203]
[1736492584971,2.6198,190.87,190.82,2.6203]
[1736492585177,2.6198,190.87,190.83,2.6203]
[1736492586263,10.55390704,190.89,190.83,2.6203]
[1736492586467,2.6197,190.88,190.83,2.6203]
[1736492587274,10.55390704,190.89,190.83,2.6203]
[1736492587468,2.6198,190.87,190.83,2.6203]
[1736492588975,10.55390704,190.89,190.83,2.6203]
[1736492589175,2.6196,190.88,190.83,2.6203]
[1736492592476,10.55390704,190.89,190.84,2.6201]
[1736492592678,10.55390704,190.89,190.78,10.55390704]
[1736492593672,13.17340704,190.89,190.84,2.62]
[1736492594176,13.17340704,190.89,190.85,2.62]
[1736492595375,6.75031424,190.87,190.85,2.62]
[1736492597676,6.75031424,190.87,190.84,2.6201]
[1736492600076,2.6194,190.9,190.81,6.75031424]
[1736492600275,1.0721,190.96,190.83,6.75031424]
[1736492600478,6.75031424,190.91,190.85,6.75031424]
[1736492600680,6.75031424,190.91,190.88,2.6195]
[1736492601276,6.75031424,190.91,190.86,1.6369]
[1736492602976,6.75031424,190.91,190.88,2.6195]
[1736492606374,6.75031424,190.91,190.89,2.6194]
[1736492607380,2.6187,190.95,190.91,2.6191]
[1736492607682,6.75031424,190.93,190.86,1.6369]
[1736492608284,6.75031424,190.93,190.91,2.6191]
[1736492609081,6.75031424,190.96,190.89,6.75031424]
[1736492609474,20.02308424,190.98,190.91,6.75031424]
[1736492609680,20.02308424,190.98,190.96,2.6184]
[1736492610285,20.02308424,190.98,190.97,2.6184]
[1736492610480,13.27277,190.98,190.97,2.6184]
[1736492611287,6.75031424,191.01,190.99,2.618]
[1736492614188,6.75031424,191.03,190.99,2.618]
[1736492615282,6.75031424,191.01,190.99,2.618]
[1736492618886,6.75031424,191.01,191.0,2.618]
[1736492623593,6.75031424,191.03,191.0,2.618]
[1736492623987,6.75031424,191.03,191.01,2.6178]
[1736492625590,1.0693,191.1,190.99,6.75031424]
[1736492625591,6.75031424,191.07,190.99,6.75031424]
[1736492625800,6.75031424,191.07,191.01,6.75031424]
[1736492626385,6.75031424,191.07,191.04,2.6173]
[1736492626699,6.75031424,191.05,190.96,6.75031424]
[1736492626889,4.52,191.12,190.96,6.75031424]
[1736492626890,6.75031424,191.03,191.0,2.6178]
[1736492632495,6.75031424,191.01,190.93,3.0961]
[1736492632700,6.75031424,191.01,190.93,9.84641424]
[1736492633101,9.36821424,191.01,190.97,2.6183]
[1736492633998,6.75031424,191.01,190.95,6.75031424]
[1736492634200,6.75031424,191.03,190.95,6.75031424]
[1736492635102,6.75031424,191.03,190.99,2.618]
[1736492635996,6.75031424,191.03,191.0,2.618]
[1736492636407,6.75031424,191.01,190.97,2.6183]
[1736492637202,6.75031424,190.99,190.95,2.6186]
[1736492637397,6.75031424,190.99,190.93,1.5081]
[1736492637599,6.75031424,190.99,190.93,8.25841424]
[1736492637796,6.75031424,190.99,190.94,2.6187]
[1736492637994,6.75031424,190.99,190.93,8.25841424]
[1736492638204,6.75031424,190.99,190.93,1.5081]
[1736492639106,9.36851424,190.99,190.95,2.6185]
[1736492640302,9.36871424,190.97,190.91,6.75031424]
[1736492640697,6.75031424,190.97,190.94,2.6188]
[1736492641401,9.36871424,190.97,190.93,2.6189]
[1736492641603,6.75031424,190.97,190.93,2.6189]
[1736492642104,6.75031424,190.97,190.94,2.6188]
[1736492646905,6.75031424,190.98,190.91,6.75031424]
[1736492647406,6.75031424,190.98,190.93,2.6189]
[1736492647609,6.75031424,190.98,190.91,6.75031424]
[1736492648513,6.75031424,190.98,190.94,2.6187]
[1736492648811,2.6182,190.99,190.94,2.6187]
[1736492649105,6.75031424,190.98,190.9,6.75031424]
[1736492649307,6.75031424,190.94,190.89,61.30745534]
[1736492650309,6.75031424,190.92,190.87,1.00304]
[1736492651622,6.75031424,190.88,190.87,1.00304]
[1736492653123,6.75031424,190.88,190.87,1e-08]
[1736492654831,9.36991424,190.88,190.87,1e-08]
[1736492657221,6.75031424,190.88,190.77,1.5865]
[1736492657427,6.75031424,190.83,190.77,8.33681424]
[1736492657726,6.75031424,190.83,190.79,2.6207]
[1736492660628,6.75031424,190.83,190.77,1.5865]
[1736492660629,6.75031424,190.81,190.77,2.621]
[1736492661827,6.75031424,190.79,190.76,2.6212]
[1736492662528,6.75031424,190.79,190.78,2.621]
[1736492663825,6.75031424,190.79,190.76,2.6212]
[1736492665430,6.75031424,190.77,190.72,6.75031424]
[1736492665726,6.75031424,190.77,190.71,4.5123]
[1736492666130,6.75031424,190.77,190.74,2.6214]
[1736492666434,6.75031424,190.77,190.71,4.5123]
[1736492666629,6.75031424,190.77,190.75,2.6214]
[1736492669033,6.75031424,190.77,190.73,2.6216]
[1736492670631,6.75031424,190.75,190.73,2.6216]
[1736492679830,6.75031424,190.75,190.72,2.6218]
[1736492680439,6.75031424,190.75,190.65,1.5175]
[1736492680641,6.75031424,190.73,190.7,2.6219]
[1736492682239,6.75031424,190.72,190.7,2.6219]
[1736492685740,6.75031424,190.72,190.66,6.75031424]
[1736492685942,6.75031424,190.72,190.71,2.6219]
[1736492688138,2.6214,190.75,190.71,2.6219]
[1736492688338,6.75031424,190.73,190.68,2.6222]
[1736492688538,6.75031424,190.71,190.65,8.26781424]
[1736492689744,6.75031424,190.71,190.67,2.6224]
[1736492691939,6.75031424,190.71,190.65,8.26781424]
[1736492692140,4.6178,190.83,190.69,6.75031424]
[1736492692342,6.75031424,190.79,190.73,6.75031424]
[1736492693141,6.75031424,190.81,190.78,2.6209]
[1736492695551,6.75031424,190.81,190.74,1.5963]
[1736492695753,6.75031424,190.81,190.79,2.6208]
[1736492697154,6.75031424,190.8,190.79,2.6208]
[1736492697851,4.52,190.85,190.81,2.6205]
[1736492698052,6.75031424,190.82,190.75,6.75031424]
[1736492699448,6.75031424,190.82,190.74,1.5963]
[1736492699654,6.75031424,190.8,190.79,2.6207]
[1736492702448,4.7573,190.88,190.75,6.75031424]
[1736492702756,6.75031424,190.87,190.81,6.75031424]
[1736492703857,2.619,190.92,190.86,2.6198]
[1736492704054,6.75031424,190.91,190.83,6.75031424]
[1736492704260,6.75031424,190.91,190.85,6.75031424]
[1736492704557,6.75031424,190.91,190.9,2.6193]
[1736492704759,6.75031424,190.93,190.87,6.75031424]
[1736492705161,6.75031424,190.95,190.89,6.75031424]
[1736492705357,6.75031424,190.95,190.94,2.6187]
[1736492706052,6.75031424,190.99,190.91,6.75031424]
[1736492706252,6.75031424,190.99,190.92,3.1704]
[1736492706865,6.75031424,190.99,190.93,6.75031424]
[1736492707160,6.75031424,190.99,190.98,2.6182]
[1736492708254,6.75031424,190.99,190.97,2.6183]
[1736492711556,2.6175,191.03,190.97,2.6183]
[1736492711757,6.75031424,190.99,190.97,2.6183]
[1736492715160,1.5453,191.1,191.04,2.6173]
[1736492715161,2.6166,191.1,191.04,2.6173]
[1736492715365,6.75031424,191.06,191.0,6.75031424]
[1736492716263,6.75031424,191.06,191.05,2.6172]
[1736492717161,6.75031424,191.08,191.05,2.6172]
[1736492717356,13.14099601,191.1,191.05,2.6172]
[1736492717962,10.52439601,191.07,191.03,2.6174]
[1736492718766,10.52439601,191.07,190.97,1.6042]
[1736492720069,10.52439601,191.07,191.02,2.6175]
[1736492721368,10.52439601,191.07,191.03,2.6175]
[1736492722264,10.52439601,191.1,190.97,1.6042]
[1736492722466,13.14109601,191.1,190.98,10.52439601]
[1736492722864,10.52439601,191.1,190.98,10.52439601]
[1736492723671,2.6167,191.09,191.03,2.6174]
[1736492724066,2.6167,191.09,190.98,10.52439601]
[1736492725169,2.6167,191.09,191.04,2.6174]
[1736492726069,10.52439601,191.1,191.05,2.6172]
[1736492726768,10.52439601,191.13,191.01,10.52439601]
[1736492726971,15.34429601,191.16,191.04,10.52439601]
[1736492727384,2.616,191.15,191.07,2.6169]
[1736492727677,15.34429601,191.16,191.04,10.52439601]
[1736492727867,2.6163,191.12,191.08,2.6167]
[1736492728068,2.6163,191.12,191.02,3.0708]
[1736492728268,10.52439601,191.1,191.02,3.0708]
[1736492728571,2.617,191.07,190.98,10.52439601]
[1736492729072,2.6173,191.05,191.0,2.6179]
[1736492729864,2.6173,191.05,190.97,1.6042]
[1736492729865,10.52439601,191.1,190.98,10.52439601]
[1736492730473,13.14099601,191.1,190.98,10.52439601]
[1736492730673,10.52439601,191.1,190.98,10.52439601]
[1736492731069,2.6168,191.09,191.04,2.6173]
[1736492731874,13.14099601,191.1,191.05,2.6172]
[1736492732066,10.52439601,191.1,191.05,2.6172]
[1736492732265,10.52439601,191.13,191.01,10.52439601]
[1736492732472,2.6164,191.12,191.05,2.6172]
[1736492732676,10.52439601,191.13,191.02,3.181]
[1736492732869,9.3599,191.16,191.02,3.181]
[1736492733068,2.6162,191.13,191.05,2.6171]
[1736492733275,10.52439601,191.15,191.02,3.181]
[1736492733867,2.6163,191.12,191.05,2.6171]
[1736492734068,2.6163,191.12,191.02,3.181]
[1736492734069,10.52439601,191.12,191.02,3.181]
[1736492734873,10.52439601,191.09,190.99,4.54]
[1736492735068,10.52439601,191.09,190.98,10.52439601]
[1736492735480,2.6171,191.06,190.98,10.52439601]
[1736492735980,2.6171,191.06,190.97,2.6182]
[1736492735981,10.52439601,191.06,190.97,2.6182]
[1736492737179,10.52439601,191.06,190.96,1.615]
[1736492737180,2.6177,191.03,190.98,2.6182]
[1736492738282,2.6177,191.03,190.93,63.24408786]
[1736492738283,10.52439601,191.0,190.93,63.24408786]
[1736492738476,10.52439601,191.0,190.92,30.16647238]
[1736492738477,10.52439601,190.97,190.92,28.60307238]
[1736492738677,2.6187,190.95,190.92,28.60307238]
[1736492739183,10.52439601,190.97,190.92,28.60307238]
[1736492739584,10.52439601,190.97,190.86,12.00759601]
[1736492740080,2.6185,190.96,190.91,2.6192]
[1736492740284,10.52439601,190.97,190.86,12.00759601]
[1736492740487,10.52439601,191.0,190.86,12.00759601]
[1736492740780,10.52439601,191.0,190.89,10.52439601]
[1736492740977,15.08439601,191.03,190.89,10.52439601]
[1736492741182,15.08439601,191.03,190.98,2.6182]
[1736492741979,4.56,191.03,190.93,3.1947]
[1736492742282,4.58,191.07,190.95,10.52439601]
[1736492742677,4.58,191.07,190.98,10.52439601]
[1736492743079,13.14109601,191.09,190.98,10.52439601]
[1736492744085,10.52439601,191.09,191.02,2.6175]
[1736492744786,13.14109601,191.09,191.03,2.6174]
[1736492745187,10.52439601,191.09,191.03,2.6174]
[1736492745986,10.52439601,191.09,190.97,7.15076809]
[1736492745987,10.52439601,191.09,191.04,2.6174]
[1736492747087,13.14109601,191.09,191.04,2.6174]
[1736492747284,13.14109601,191.09,191.05,2.6172]
[1736492747486,2.6166,191.11,190.99,10.52439601]
[1736492750083,2.6166,191.11,191.05,2.6172]
[1736492753089,2.6168,191.08,191.03,2.6174]
[1736492753486,2.6168,191.08,190.98,7.15076809]
[1736492753988,2.6168,191.08,190.97,4.69329755]
[1736492754590,13.14109601,191.09,190.97,4.69329755]
[1736492755092,13.14109601,191.09,191.04,2.6174]
[1736492758989,2.617,191.07,191.02,2.6176]
[1736492760390,10.52439601,191.09,191.03,2.6175]
[1736492760591,2.6169,191.08,191.03,2.6175]
[1736492760898,10.52439601,191.09,191.03,2.6175]
[1736492762298,2.617,191.07,191.03,2.6175]
[1736492762702,10.52439601,191.06,191.01,2.6177]
[1736492762896,10.52439601,191.06,190.94,30.10207238]
[1736492763196,2.6174,191.04,191.0,2.6179]
[1736492764000,2.6176,191.03,190.98,2.6181]
[1736492764400,10.52439601,191.06,190.94,1.499]
[1736492766000,2.6175,191.04,190.94,1.499]
[1736492766293,10.52439601,191.03,190.94,1.499]
[1736492766500,2.6181,190.99,190.95,2.6185]
[1736492766705,2.6181,190.99,190.93,3.1947]
[1736492767291,10.52439601,191.0,190.93,3.1947]
[1736492767490,4.54,191.01,190.93,3.1947]
[1736492768202,2.6179,191.0,190.93,3.1947]
[1736492769103,2.6179,191.0,190.95,2.6186]
[1736492769397,10.52439601,191.0,190.93,3.1947]
[1736492769593,2.6181,190.99,190.92,63.24345283]
[1736492771198,2.6181,190.99,190.94,2.6187]
[1736492772002,2.6184,190.97,190.92,65.86235283]
[1736492772504,2.6184,190.97,190.92,2.6189]
[1736492772808,10.52439601,190.97,190.87,3.0845]
[1736492773204,2.6188,190.95,190.89,2.6194]
[1736492774005,2.6189,190.93,190.89,2.6194]
[1736492774205,10.52439601,190.97,190.89,2.6194]
[1736492774903,2.6188,190.94,190.89,2.6194]
[1736492779505,2.619,190.92,190.87,2.6197]
[1736492779701,4.54,190.93,190.87,2.6197]
[1736492780103,2.6192,190.91,190.87,2.6197]
[1736492780505,4.54,190.93,190.87,2.6197]
[1736492780906,7.159,190.93,190.89,2.6194]
[1736492781605,7.159,190.93,190.88,2.6196]
[1736492781808,4.54,190.93,190.83,1.4995]
[1736492782002,2.6193,190.9,190.85,2.62]
[1736492782605,2.6196,190.88,190.84,2.6201]
[1736492782905,2.6196,190.88,190.81,3.1193]
[1736492782906,10.52439601,190.88,190.81,3.1193]
[1736492783511,2.6198,190.87,190.82,2.6203]
[1736492783710,10.52439601,190.91,190.81,3.1193]
[1736492783905,2.6194,190.9,190.85,2.62]
[1736492784109,10.52439601,190.91,190.81,3.1193]
[1736492784110,15.06439601,190.91,190.81,3.1193]
[1736492784608,17.68369601,190.91,190.84,2.6201]
[1736492784810,13.14369601,190.91,190.81,3.1193]
[1736492785611,4.54,190.92,190.81,3.1193]
[1736492785810,2.619,190.93,190.83,10.52439601]
[1736492786010,7.159,190.93,190.84,1.5599]
[1736492786213,7.159,190.93,190.88,2.6196]
[1736492787010,2.619,190.93,190.88,2.6196]
[1736492789921,2.619,190.93,190.84,1.5599]
[1736492790221,2.619,190.93,190.89,2.6194]
[1736492791417,6.74658983,190.92,190.89,2.6194]
[1736492791613,2.6196,190.88,190.83,2.6202]
[1736492791821,6.74658983,190.86,190.83,2.6202]
[1736492792221,2.6196,190.88,190.83,2.6202]
[1736492792424,6.74658983,190.87,190.84,2.62]
[1736492793526,13.16672332,190.89,190.84,2.62]
[1736492795525,13.16672332,190.89,190.85,2.6199]
[1736492796526,10.54722332,190.89,190.77,10.54722332]
[1736492796825,10.54722332,190.92,190.8,10.54722332]
[1736492797631,13.16632332,190.92,190.87,2.6196]
[1736492797826,10.54722332,190.95,190.83,10.54722332]
[1736492798025,10.54722332,190.95,190.84,4.6718]
[1736492798529,10.54722332,190.98,190.86,10.54722332]
[1736492798717,15.06722332,191.01,190.86,10.54722332]
[1736492798918,2.6181,190.99,190.92,2.619]
[1736492799122,10.54722332,190.98,190.86,10.54722332]
[1736492800230,2.6184,190.97,190.86,10.54722332]
[1736492800631,2.6184,190.97,190.91,2.6191]
[1736492800932,2.6184,190.97,190.86,10.54722332]
[1736492801931,2.6184,190.97,190.91,2.6191]
[1736492802124,2.6184,190.97,190.86,10.54722332]
[1736492802329,13.16542332,190.98,190.86,10.54722332]
[1736492802634,13.16542332,190.98,190.94,2.6188]
[1736492802930,13.16542332,190.98,190.93,2.6189]
[1736492803628,10.54722332,190.98,190.94,2.6187]
[1736492805830,10.54722332,190.98,190.95,2.6185]
[1736492806133,13.16512332,191.01,190.89,10.54722332]
[1736492806329,10.54722332,191.01,190.99,2.6181]
[1736492806533,13.16462332,191.04,190.99,2.6181]
[1736492806729,10.54722332,191.04,190.89,10.54722332]
[1736492807032,2.6177,191.02,190.89,10.54722332]
[1736492807431,2.6177,191.02,190.9,4.71770622]
[1736492807733,2.6177,191.02,190.97,2.6183]
[1736492812434,13.16462332,191.04,190.99,2.6181]
[1736492815439,6.74063484,191.0,190.99,2.6181]
[1736492818141,1.5773,191.06,190.96,6.74063484]
[1736492818335,6.74063484,191.02,191.01,2.6178]
[1736492818542,6.74063484,191.02,190.87,7.15076809]
[1736492818740,6.74063484,190.93,190.91,2.6192]
[1736492819043,6.74063484,190.93,190.87,7.15076809]
[1736492819244,6.74063484,190.91,190.86,3.1283]
[1736492819838,6.74063484,190.91,190.89,2.6195]
[1736492820044,4.52,190.94,190.86,9.86893484]
[1736492820236,11.26063484,190.94,190.86,9.86893484]
[1736492820637,11.26063484,190.94,190.91,2.6191]
[1736492820844,11.26063484,190.94,190.86,9.86893484]
[1736492821233,11.26063484,190.94,190.88,2.6196]
[1736492821439,4.52,190.94,190.86,3.1283]
[1736492821943,4.52,190.94,190.88,2.6196]
[1736492822141,4.52,190.94,190.86,3.1283]
[1736492823147,4.52,190.94,190.91,2.6191]
[1736492823441,4.52,190.94,190.86,3.1283]
[1736492823636,15.059119,190.94,190.86,1.5124]
[1736492823835,10.539119,190.91,190.82,28.60307238]
[1736492824442,13.158419,190.91,190.84,2.6201]
[1736492824645,10.539119,190.94,190.82,28.60307238]
[1736492824842,10.539119,190.94,190.81,10.539119]
[1736492825951,13.157919,190.94,190.88,2.6195]
[1736492826443,13.157919,190.94,190.83,4.54]
[1736492826444,13.158319,190.91,190.85,2.6199]
[1736492827244,2.6193,190.9,190.85,2.6199]
[1736492829248,10.539119,190.91,190.8,4.6878]
[1736492830251,2.6194,190.9,190.8,4.6878]
[1736492830748,2.6195,190.89,190.8,4.6878]
[1736492831546,2.6195,190.89,190.82,2.6203]
[1736492831747,2.6195,190.89,190.8,4.6878]
[1736492833251,2.6195,190.89,190.84,2.6202]
[1736492834252,10.539119,190.91,190.8,4.6878]
[1736492834453,10.539119,190.88,190.8,3.1653]
[1736492834950,10.539119,190.88,190.81,2.6206]
[1736492834951,10.539119,190.85,190.81,2.6206]
[1736492835154,10.539119,190.85,190.8,1.5661]
[1736492835155,10.539119,190.88,190.8,1.5661]
[1736492836152,10.539119,190.88,190.83,2.6202]
[1736492837257,10.539119,190.88,190.84,2.6202]
[1736492839554,13.158719,190.88,190.83,2.6203]
[1736492840259,10.539119,190.88,190.76,1.53]
[1736492840561,4.52,190.96,190.81,10.539119]
[1736492840761,10.539119,190.94,190.82,3.0716]
[1736492841258,6.74772727,190.9,190.84,6.74772727]
[1736492842054,6.74772727,190.9,190.87,2.6197]
[1736492844360,6.74772727,190.9,190.84,6.74772727]
[1736492844561,9.36682727,190.92,190.88,2.6196]
[1736492845061,6.74772727,190.93,190.89,2.6194]
[1736492845562,2.6183,190.98,190.9,6.74772727]
[1736492845764,6.74772727,190.97,190.9,6.74772727]
[1736492846258,6.74772727,190.97,190.92,2.6191]
[1736492847064,6.74772727,190.97,190.9,9.36692727]
[1736492847065,2.6186,190.96,190.9,9.36692727]
[1736492847458,6.74772727,190.95,190.9,6.74772727]
[1736492847666,6.74772727,190.95,190.91,2.6192]
[1736492847962,6.74772727,190.95,190.88,6.74772727]
[1736492848163,6.74772727,190.93,190.86,6.74772727]
[1736492849165,6.74772727,190.93,190.88,2.6196]
[1736492849359,6.74772727,190.93,190.86,6.74772727]
[1736492850260,6.74772727,190.93,190.89,2.6195]
[1736492851461,6.74772727,190.93,190.88,2.6196]
[1736492852975,6.74772727,190.91,190.85,2.6199]
[1736492853269,6.74772727,190.87,190.83,1.4835]
[1736492853573,6.74772727,190.87,190.82,1.558]
[1736492853868,6.74772727,190.87,190.82,4.1784]
[1736492854666,6.74772727,190.85,190.8,9.36832727]
[1736492854867,6.74772727,190.85,190.8,6.74772727]
[1736492855567,6.74772727,190.83,190.8,2.6207]
[1736492855870,6.74772727,190.83,190.78,1.5423]
[1736492856261,6.74772727,190.83,190.79,2.6209]
[1736492856461,9.1087,190.93,190.78,8.29002727]
[1736492856670,6.74772727,190.85,190.81,2.6205]
[1736492857667,6.74772727,190.83,190.8,2.6207]
[1736492858475,6.74772727,190.85,190.79,6.74772727]
[1736492858771,6.74772727,190.9,190.83,6.74772727]
[1736492858969,6.74772727,190.9,190.87,2.6197]
[1736492859365,6.74772727,190.9,190.85,6.74772727]
[1736492859569,6.74772727,190.92,190.88,2.6196]
[1736492861377,2.619,190.93,190.88,2.6196]
[1736492862377,2.6188,190.94,190.89,2.6195]
[1736492864070,10.54099051,190.95,190.89,2.6195]
[1736492864275,2.619,190.93,190.89,2.6195]
[1736492867378,4.52,190.96,190.85,2.62]
[1736492867379,2.6194,190.9,190.85,2.62]
[1736492867585,10.54099051,190.92,190.84,1.5783]
[1736492869285,10.54099051,190.92,190.8,12.10579051]
[1736492869984,2.6195,190.89,190.84,2.6201]
[1736492870690,2.6195,190.89,190.85,2.62]
[1736492871287,2.6197,190.88,190.83,2.6202]
[1736492872090,2.6197,190.88,190.8,1.5648]
[1736492872390,2.6197,190.88,190.84,2.6202]
[1736492872795,1.581,191.0,190.8,12.10579051]
[1736492872997,10.54099051,190.98,190.86,10.54099051]
[1736492873493,10.54099051,190.98,190.87,1.5159]
[1736492873790,2.6187,190.95,190.9,2.6193]
[1736492874195,5.24,191.22,190.87,1.5159]
[1736492874392,10.54099051,190.97,190.91,2.6192]
[1736492875595,2.6187,190.96,190.91,2.6192]
[1736492875797,10.54099051,190.97,190.89,2.6194]
[1736492876192,2.6187,190.95,190.87,1.5159]
[1736492876593,2.6187,190.95,190.9,2.6192]
[1736492877293,2.619,190.93,190.88,2.6195]
[1736492877495,10.54099051,190.94,190.88,2.6195]
[1736492877892,10.54099051,190.94,190.89,2.6194]
[1736492878394,10.54099051,190.94,190.88,2.6196]
[1736492878992,2.619,190.93,190.88,2.6196]
[1736492880798,10.54099051,190.94,190.88,2.6196]
[1736492880998,2.6191,190.92,190.88,2.6196]
[1736492882197,10.54099051,190.94,190.88,2.6196]
[1736492882495,2.619,190.93,190.88,2.6196]
[1736492883397,6.7472507,190.91,190.88,2.6196]
[1736492883700,2.619,190.93,190.89,2.6194]
[1736492883896,6.7472507,190.92,190.89,2.6194]
[1736492884303,4.52,190.97,190.86,6.7472507]
[1736492884603,144.8461277,191.09,190.9,6.7472507]
[1736492884802,6.7472507,190.99,190.97,2.6183]
[1736492886302,6.7472507,191.01,190.94,6.7472507]
[1736492886696,6.7472507,191.01,190.96,2.6185]
[1736492886904,6.7472507,191.01,190.94,6.7472507]
[1736492887098,6.7472507,191.03,190.96,6.7472507]
[1736492887299,1.627,191.13,191.01,2.6178]
[1736492887300,2.617,191.07,191.01,2.6178]
[1736492887496,14.91348132,191.08,190.95,15.04727828]
[1736492887700,10.52727828,191.08,190.95,15.04727828]
[1736492887900,10.52727828,191.08,191.03,2.6175]
[1736492888404,10.52727828,191.08,190.95,15.04727828]
[1736492888606,10.52727828,191.08,190.98,10.52727828]
[1736492888802,10.52727828,191.08,190.99,4.7365]
[1736492889204,10.52727828,191.08,191.03,2.6175]
[1736492890605,15.04727828,191.11,190.99,4.7365]
[1736492891700,2.6167,191.1,191.03,2.6174]
[1736492891903,10.52727828,191.08,191.03,2.6174]
[1736492893206,10.52727828,191.08,190.99,4.7365]
[1736492893409,15.04727828,191.11,190.99,4.7365]
[1736492893806,15.04727828,191.11,191.06,2.6171]
[1736492895205,15.04727828,191.11,191.07,2.617]
[1736492896108,10.52727828,191.11,191.07,2.617]
[1736492899813,10.52727828,191.11,190.99,4.7365]
[1736492900013,10.52727828,191.11,191.08,2.6169]
[1736492903115,10.52727828,191.11,190.99,4.7365]
[1736492903116,2.6167,191.1,191.02,2.6176]
[1736492903315,2.6167,191.1,190.99,4.7365]
[1736492903316,10.52727828,191.11,190.99,4.7365]
[1736492903913,2.6169,191.09,191.03,2.6175]
[1736492904807,2.6169,191.09,190.99,4.7365]
[1736492905007,2.6169,191.09,191.04,2.6174]
[1736492905214,2.6169,191.09,190.99,4.7365]
[1736492905415,10.52727828,191.11,191.08,2.6169]
[1736492905712,1.627,191.13,191.01,10.52727828]
[1736492905908,1.627,191.13,191.09,2.6167]
[1736492906517,10.52727828,191.14,191.01,10.52727828]
[1736492906718,10.52727828,191.17,191.04,10.52727828]
[1736492906915,1.5459,191.18,191.07,10.52727828]
[1736492907116,10.52727828,191.2,191.08,1.5514]
[1736492907311,10.52727828,191.2,191.15,2.6159]
[1736492908220,13.14257828,191.2,191.15,2.6159]
[1736492909120,2.6154,191.19,191.14,2.6161]
[1736492912615,10.52727828,191.17,191.08,4.7102]
[1736492912819,10.52727828,191.14,191.08,1.5514]
[1736492913026,10.52727828,191.14,191.04,4.52]
[1736492913920,10.52727828,191.14,191.01,19.83607828]
[1736492915120,2.6164,191.12,191.07,2.617]
[1736492916826,10.52727828,191.14,191.01,19.83607828]
[1736492917021,10.52727828,191.11,191.01,4.7888]
[1736492917226,10.52727828,191.11,191.01,1.5997]
[1736492917426,10.52727828,191.08,191.01,1.5997]
[1736492918229,10.52727828,191.08,191.03,2.6175]
[1736492919231,10.52727828,191.05,190.96,7.15076809]
[1736492919930,2.6175,191.04,190.99,2.6181]